[Event "Early-Titled-Tuesday-Blitz-June-18-2024"]
[Site "Chess.com"]
[Date "2024.06.18"]
[Round "10"]
[White "UF_10"]
[Black "Harry_Rakkel"]
[Result "0-1"]
[WhiteElo "2552"]
[BlackElo "2665"]
[TimeControl "180+1"]
[EndTime "9:56:37 PDT"]
[Termination "Harry_Rakkel won by resignation"]

1. d4 {[%clk 0:02:56.4]} 1... g6 {[%clk 0:02:59.5]} 2. Nf3 {[%clk 0:02:55.2]}
2... Bg7 {[%clk 0:02:59.2]} 3. Bf4 {[%clk 0:02:51.2]} 3... d6 {[%clk 0:02:58.3]}
4. Nbd2 {[%clk 0:02:50]} 4... Nd7 {[%clk 0:02:57.6]} 5. e4 {[%clk 0:02:46.5]}
5... e5 {[%clk 0:02:57]} 6. Be3 {[%clk 0:02:46.5]} 6... Ngf6 {[%clk 0:02:55.4]}
7. h3 {[%clk 0:02:46.4]} 7... exd4 {[%clk 0:02:51.3]} 8. Bxd4 {[%clk 0:02:46.1]}
8... O-O {[%clk 0:02:50.4]} 9. Bd3 {[%clk 0:02:43.9]} 9... c5 {[%clk 0:02:34.3]}
10. Be3 {[%clk 0:02:26.8]} 10... d5 {[%clk 0:02:24.9]} 11. e5 {[%clk 0:02:19.5]}
11... Ne8 {[%clk 0:02:22.7]} 12. Bf4 {[%clk 0:02:02.4]} 12... Nc7 {[%clk
0:02:18.2]} 13. O-O {[%clk 0:01:59.7]} 13... Ne6 {[%clk 0:02:14.1]} 14. Bh2
{[%clk 0:01:57]} 14... c4 {[%clk 0:02:07.2]} 15. Be2 {[%clk 0:01:57]} 15... b5
{[%clk 0:02:07.8]} 16. Re1 {[%clk 0:01:54.8]} 16... Bb7 {[%clk 0:02:03.7]} 17.
c3 {[%clk 0:01:54.4]} 17... a5 {[%clk 0:02:01.6]} 18. Nd4 {[%clk 0:01:35.9]}
18... Qb6 {[%clk 0:01:59.6]} 19. N2f3 {[%clk 0:01:33.9]} 19... Bh6 {[%clk
0:01:54.3]} 20. Bf1 {[%clk 0:01:18.4]} 20... Ndc5 {[%clk 0:01:52.5]} 21. Bg3
{[%clk 0:00:55.3]} 21... Ne4 {[%clk 0:01:50.7]} 22. Bh2 {[%clk 0:00:45.1]} 22...
Rae8 {[%clk 0:01:49]} 23. g3 {[%clk 0:00:37.9]} 23... f6 {[%clk 0:01:45.6]} 24.
exf6 {[%clk 0:00:32.8]} 24... Rxf6 {[%clk 0:01:44]} 25. Bg2 {[%clk 0:00:33.3]}
25... Ref8 {[%clk 0:01:39.9]} 26. Re2 {[%clk 0:00:31]} 26... N6c5 {[%clk
0:01:38.3]} 27. g4 {[%clk 0:00:18.7]} 27... Nd3 {[%clk 0:01:37.3]} 28. g5 {[%clk
0:00:17.8]} 28... Bxg5 {[%clk 0:01:35.2]} 29. Nxg5 {[%clk 0:00:17.3]} 29... Nxg5
{[%clk 0:01:35]} 30. Qd2 {[%clk 0:00:15.6]} 30... Ne4 {[%clk 0:01:30.6]} 31.
Bxe4 {[%clk 0:00:13.6]} 31... dxe4 {[%clk 0:01:29.9]} 32. Rf1 {[%clk 0:00:13.4]}
32... Qc5 {[%clk 0:01:28.7]} 33. Bg3 {[%clk 0:00:13.1]} 33... Qh5 {[%clk
0:01:28.3]} 34. Kh2 {[%clk 0:00:13]} 34... Bc8 {[%clk 0:01:27]} 35. Rxe4 {[%clk
0:00:10.7]} 35... Qxh3+ {[%clk 0:01:24.6]} 36. Kg1 {[%clk 0:00:11.1]} 36... Bb7
{[%clk 0:01:25.2]} 37. Qe3 {[%clk 0:00:08.5]} 37... Nc5 {[%clk 0:01:18.4]} 38.
Re1 {[%clk 0:00:04.8]} 38... Bxe4 {[%clk 0:01:17.2]} 39. f3 {[%clk 0:00:02.5]}
39... Qxg3+ {[%clk 0:01:16.7]} 0-1

[Event "Early-Titled-Tuesday-Blitz-June-18-2024"]
[Site "Chess.com"]
[Date "2024.06.18"]
[Round "10"]
[White "HouseOfDurin"]
[Black "Supelyel"]
[Result "1-0"]
[WhiteElo "2309"]
[BlackElo "2409"]
[TimeControl "180+1"]
[EndTime "9:56:37 PDT"]
[Termination "HouseOfDurin won by resignation"]

1. d4 {[%clk 0:03:00.9]} 1... d6 {[%clk 0:02:54.9]} 2. Bg5 {[%clk 0:03:01.2]}
2... Nd7 {[%clk 0:02:53.2]} 3. e3 {[%clk 0:03:00.9]} 3... Ngf6 {[%clk
0:02:52.8]} 4. c4 {[%clk 0:03:01.1]} 4... e5 {[%clk 0:02:52.9]} 5. Nc3 {[%clk
0:03:00.6]} 5... Be7 {[%clk 0:02:52.7]} 6. dxe5 {[%clk 0:02:59.9]} 6... dxe5
{[%clk 0:02:52.9]} 7. Bxf6 {[%clk 0:02:57.6]} 7... Bxf6 {[%clk 0:02:53]} 8. Nf3
{[%clk 0:02:52.9]} 8... c6 {[%clk 0:02:52.8]} 9. Bd3 {[%clk 0:02:52.4]} 9... Qc7
{[%clk 0:02:50.6]} 10. Qc2 {[%clk 0:02:52]} 10... h6 {[%clk 0:02:50.4]} 11.
O-O-O {[%clk 0:02:51.1]} 11... a5 {[%clk 0:02:50.3]} 12. Ne4 {[%clk 0:02:42]}
12... Be7 {[%clk 0:02:50.3]} 13. c5 {[%clk 0:02:39.7]} 13... b6 {[%clk
0:02:41.7]} 14. Nd6+ {[%clk 0:02:31.5]} 14... Bxd6 {[%clk 0:02:41.2]} 15. cxd6
{[%clk 0:02:32.4]} 15... Qxd6 {[%clk 0:02:38.5]} 16. Be4 {[%clk 0:02:30.3]}
16... Qe6 {[%clk 0:02:18.2]} 17. Qxc6 {[%clk 0:02:29.7]} 17... O-O {[%clk
0:01:41.9]} 18. Qxe6 {[%clk 0:02:28.4]} 18... fxe6 {[%clk 0:01:38]} 19. Bxa8
{[%clk 0:02:29.3]} 19... Nc5 {[%clk 0:01:35]} 20. Rd2 {[%clk 0:02:22]} 20... Bd7
{[%clk 0:01:28.8]} 21. Rxd7 {[%clk 0:02:00.9]} 21... Nxd7 {[%clk 0:01:28.4]} 22.
Be4 {[%clk 0:01:59.9]} 22... Nc5 {[%clk 0:01:25.5]} 23. Bc2 {[%clk 0:01:56.3]}
23... e4 {[%clk 0:01:25.6]} 24. Nd2 {[%clk 0:01:51.2]} 24... Rxf2 {[%clk
0:01:25.6]} 25. Nxe4 {[%clk 0:01:51.3]} 25... Rxc2+ {[%clk 0:01:19.2]} 26. Kxc2
{[%clk 0:01:51.1]} 26... Nxe4 {[%clk 0:01:19.6]} 27. Rd1 {[%clk 0:01:45]} 27...
Kf7 {[%clk 0:01:14.8]} 28. Rd7+ {[%clk 0:01:44.2]} 28... Kf6 {[%clk 0:01:15.1]}
29. Rb7 {[%clk 0:01:44.1]} 29... Nf2 {[%clk 0:01:11.3]} 30. Rxb6 {[%clk
0:01:40.4]} 30... Ng4 {[%clk 0:01:11.5]} 31. Kd3 {[%clk 0:01:37.9]} 31... Nxh2
{[%clk 0:01:11.7]} 32. Ra6 {[%clk 0:01:33.9]} 32... Ng4 {[%clk 0:01:08.9]} 33.
Rxa5 {[%clk 0:01:32.6]} 33... g5 {[%clk 0:01:09.3]} 34. b4 {[%clk 0:01:24.3]}
34... h5 {[%clk 0:01:07.1]} 35. Rc5 {[%clk 0:01:17.9]} 35... Nf2+ {[%clk
0:01:02.7]} 36. Ke2 {[%clk 0:01:08.4]} 36... Ne4 {[%clk 0:01:02.1]} 37. Rc4
{[%clk 0:01:07]} 37... Nd6 {[%clk 0:00:59.9]} 38. Rc6 {[%clk 0:01:03.5]} 38...
Nb5 {[%clk 0:00:55.5]} 39. a4 {[%clk 0:01:03.2]} 39... Na3 {[%clk 0:00:39.7]}
40. Rc3 {[%clk 0:01:01.3]} 40... Nb1 {[%clk 0:00:36.2]} 41. Rc1 {[%clk
0:00:55.6]} 41... Na3 {[%clk 0:00:34.4]} 42. Kd3 {[%clk 0:00:49.9]} 42... Ke5
{[%clk 0:00:30.7]} 43. Ra1 {[%clk 0:00:49.7]} 43... g4 {[%clk 0:00:30.5]} 44.
Rxa3 {[%clk 0:00:49.4]} 44... h4 {[%clk 0:00:31.4]} 45. a5 {[%clk 0:00:48.8]}
1-0

[Event "Early-Titled-Tuesday-Blitz-June-18-2024"]
[Site "Chess.com"]
[Date "2024.06.18"]
[Round "10"]
[White "Yaacovn"]
[Black "Likvidator228"]
[Result "0-1"]
[WhiteElo "2813"]
[BlackElo "2558"]
[TimeControl "180+1"]
[EndTime "9:56:41 PDT"]
[Termination "Likvidator228 won on time"]

1. d4 {[%clk 0:03:00.9]} 1... d5 {[%clk 0:02:58.8]} 2. e3 {[%clk 0:02:33.1]}
2... Nf6 {[%clk 0:02:53.1]} 3. Bd3 {[%clk 0:02:25.8]} 3... e6 {[%clk 0:02:50.9]}
4. Nd2 {[%clk 0:02:24.9]} 4... c5 {[%clk 0:02:51.4]} 5. c3 {[%clk 0:02:24.6]}
5... Nc6 {[%clk 0:02:50.8]} 6. f4 {[%clk 0:02:21.2]} 6... Qc7 {[%clk 0:02:44]}
7. Nh3 {[%clk 0:02:19.2]} 7... Be7 {[%clk 0:02:39.1]} 8. O-O {[%clk 0:02:19]}
8... b6 {[%clk 0:02:39.4]} 9. Qe2 {[%clk 0:02:18.4]} 9... Bb7 {[%clk 0:02:36.7]}
10. Nf2 {[%clk 0:02:16.8]} 10... g6 {[%clk 0:02:32.4]} 11. Nf3 {[%clk
0:02:16.3]} 11... h5 {[%clk 0:02:20.5]} 12. Ne5 {[%clk 0:02:10.2]} 12... Nxe5
{[%clk 0:02:17.6]} 13. fxe5 {[%clk 0:02:09.4]} 13... Ne4 {[%clk 0:02:18.3]} 14.
Nxe4 {[%clk 0:02:08.3]} 14... dxe4 {[%clk 0:02:18.8]} 15. Bb5+ {[%clk
0:02:08.4]} 15... Bc6 {[%clk 0:02:18.3]} 16. Bd2 {[%clk 0:02:07.8]} 16... O-O
{[%clk 0:02:13.2]} 17. Bxc6 {[%clk 0:02:03.4]} 17... Qxc6 {[%clk 0:02:13.5]} 18.
Rf2 {[%clk 0:02:03.4]} 18... f5 {[%clk 0:02:10.5]} 19. exf6 {[%clk 0:02:02.7]}
19... Rxf6 {[%clk 0:02:10.6]} 20. Rxf6 {[%clk 0:02:01.5]} 20... Bxf6 {[%clk
0:02:11.5]} 21. Rf1 {[%clk 0:02:01.2]} 21... Rf8 {[%clk 0:02:11.7]} 22. Be1
{[%clk 0:02:00.1]} 22... cxd4 {[%clk 0:01:56.2]} 23. exd4 {[%clk 0:01:58]} 23...
e5 {[%clk 0:01:46.7]} 24. dxe5 {[%clk 0:01:51.3]} 24... Bxe5 {[%clk 0:01:46.6]}
25. Rxf8+ {[%clk 0:01:48.5]} 25... Kxf8 {[%clk 0:01:46.5]} 26. Bf2 {[%clk
0:01:44.4]} 26... Qd5 {[%clk 0:01:43.8]} 27. c4 {[%clk 0:01:10.2]} 27... Qd3
{[%clk 0:01:40.2]} 28. Qf1 {[%clk 0:00:53.4]} 28... Qxf1+ {[%clk 0:01:34.5]} 29.
Kxf1 {[%clk 0:00:54.3]} 29... Bxb2 {[%clk 0:01:34.7]} 30. c5 {[%clk 0:00:51.7]}
30... b5 {[%clk 0:01:15.4]} 31. c6 {[%clk 0:00:48.5]} 31... Ke7 {[%clk
0:01:14.6]} 32. Bc5+ {[%clk 0:00:36.2]} 32... Ke6 {[%clk 0:01:11.9]} 33. Ke2
{[%clk 0:00:30.6]} 33... Bc1 {[%clk 0:01:09.2]} 34. Bxa7 {[%clk 0:00:25.2]}
34... Kd6 {[%clk 0:01:08.2]} 35. Be3 {[%clk 0:00:23.3]} 35... Bb2 {[%clk
0:01:04]} 36. Bf4+ {[%clk 0:00:17.8]} 36... Kxc6 {[%clk 0:01:04.3]} 37. Ke3
{[%clk 0:00:17]} 37... Kd5 {[%clk 0:01:04.6]} 38. Ke2 {[%clk 0:00:14.9]} 38...
Be5 {[%clk 0:01:02.9]} 39. Bxe5 {[%clk 0:00:06.4]} 39... Kxe5 {[%clk 0:01:03.2]}
0-1

[Event "Early-Titled-Tuesday-Blitz-June-18-2024"]
[Site "Chess.com"]
[Date "2024.06.18"]
[Round "10"]
[White "DarkAlekhine"]
[Black "Rsnr"]
[Result "0-1"]
[WhiteElo "2750"]
[BlackElo "2900"]
[TimeControl "180+1"]
[EndTime "9:56:46 PDT"]
[Termination "Rsnr won by resignation"]

1. e4 {[%clk 0:03:00.9]} 1... c6 {[%clk 0:03:00]} 2. d4 {[%clk 0:03:00.2]} 2...
d5 {[%clk 0:03:00.9]} 3. exd5 {[%clk 0:03:01.1]} 3... cxd5 {[%clk 0:03:01.7]} 4.
Bd3 {[%clk 0:03:01.5]} 4... Nc6 {[%clk 0:03:02.1]} 5. c3 {[%clk 0:03:01.7]} 5...
Qc7 {[%clk 0:03:02.8]} 6. Ne2 {[%clk 0:03:00.7]} 6... Bg4 {[%clk 0:03:03.1]} 7.
h3 {[%clk 0:02:56.1]} 7... Bxe2 {[%clk 0:03:00.9]} 8. Qxe2 {[%clk 0:02:56.1]}
8... Nxd4 {[%clk 0:03:01.1]} 9. Qd1 {[%clk 0:02:45.1]} 9... Nc6 {[%clk 0:03:01]}
10. O-O {[%clk 0:02:45.3]} 10... e6 {[%clk 0:03:01.4]} 11. Re1 {[%clk 0:02:44]}
11... Bd6 {[%clk 0:03:00.9]} 12. Nd2 {[%clk 0:02:42.9]} 12... Nge7 {[%clk
0:02:59.7]} 13. Nf3 {[%clk 0:02:42.7]} 13... h6 {[%clk 0:02:52.5]} 14. Be3
{[%clk 0:02:34.2]} 14... O-O {[%clk 0:02:50.2]} 15. Qd2 {[%clk 0:02:34.4]} 15...
Ng6 {[%clk 0:02:07.1]} 16. Bxg6 {[%clk 0:01:54.7]} 16... fxg6 {[%clk 0:02:08]}
17. Bxh6 {[%clk 0:01:54.7]} 17... gxh6 {[%clk 0:02:08]} 18. Rxe6 {[%clk
0:01:54.9]} 18... Kh7 {[%clk 0:02:00]} 19. Nh4 {[%clk 0:01:45.1]} 19... Ne7
{[%clk 0:01:35.3]} 20. Qd3 {[%clk 0:01:21.8]} 20... Rg8 {[%clk 0:01:35.5]} 21.
Rae1 {[%clk 0:01:21.3]} 21... Raf8 {[%clk 0:01:29]} 22. c4 {[%clk 0:01:00.8]}
22... Bc5 {[%clk 0:01:26.2]} 23. cxd5 {[%clk 0:00:45.3]} 23... Bxf2+ {[%clk
0:00:09.6]} 24. Kh1 {[%clk 0:00:45.2]} 24... Bxh4 {[%clk 0:00:10.5]} 25. d6
{[%clk 0:00:45.4]} 25... Qd8 {[%clk 0:00:11.2]} 26. Qd4 {[%clk 0:00:37.7]} 26...
Nf5 {[%clk 0:00:11.5]} 27. Qd5 {[%clk 0:00:37.6]} 27... Rg7 {[%clk 0:00:10.4]}
28. Rd1 {[%clk 0:00:34.9]} 28... Rd7 {[%clk 0:00:10.6]} 29. Qe4 {[%clk
0:00:32.8]} 29... Ng3+ {[%clk 0:00:10.7]} 0-1

[Event "Early-Titled-Tuesday-Blitz-June-18-2024"]
[Site "Chess.com"]
[Date "2024.06.18"]
[Round "10"]
[White "Hudijegszid"]
[Black "Bkmzzzzz"]
[Result "1-0"]
[WhiteElo "2525"]
[BlackElo "2392"]
[TimeControl "180+1"]
[EndTime "9:56:46 PDT"]
[Termination "Hudijegszid won by resignation"]

1. e4 {[%clk 0:03:00.9]} 1... e6 {[%clk 0:03:00]} 2. d4 {[%clk 0:02:53.2]} 2...
d5 {[%clk 0:02:56.2]} 3. Nd2 {[%clk 0:02:53.2]} 3... c5 {[%clk 0:02:47.3]} 4.
Ngf3 {[%clk 0:02:53]} 4... Nf6 {[%clk 0:02:45.8]} 5. exd5 {[%clk 0:02:49.2]}
5... Qxd5 {[%clk 0:02:38.6]} 6. Bc4 {[%clk 0:02:43.3]} 6... Qc6 {[%clk
0:02:30.7]} 7. O-O {[%clk 0:02:42.3]} 7... b5 {[%clk 0:02:15.6]} 8. Be2 {[%clk
0:02:38.2]} 8... Bb7 {[%clk 0:02:12.4]} 9. c4 {[%clk 0:02:38.1]} 9... bxc4
{[%clk 0:01:43.4]} 10. Nxc4 {[%clk 0:02:39]} 10... cxd4 {[%clk 0:01:39.7]} 11.
Na5 {[%clk 0:02:36.7]} 11... Qb6 {[%clk 0:01:36.2]} 12. Qa4+ {[%clk 0:02:33.6]}
12... Nbd7 {[%clk 0:01:33.8]} 13. Nxb7 {[%clk 0:02:32.1]} 13... Qxb7 {[%clk
0:01:33.6]} 14. Nxd4 {[%clk 0:02:32.7]} 14... Bc5 {[%clk 0:01:20.3]} 15. Bb5
{[%clk 0:01:34.5]} 15... Rd8 {[%clk 0:00:40.2]} 16. Nc6 {[%clk 0:01:27.9]} 16...
Rc8 {[%clk 0:00:40]} 17. Ne5 {[%clk 0:01:26.6]} 17... Ke7 {[%clk 0:00:20.7]} 18.
Nxd7 {[%clk 0:01:24]} 18... Nxd7 {[%clk 0:00:21.6]} 19. Ba6 {[%clk 0:01:24.4]}
19... Qc6 {[%clk 0:00:20.7]} 20. Bb5 {[%clk 0:01:22.6]} 20... Qc7 {[%clk
0:00:20.3]} 21. Rd1 {[%clk 0:01:19.5]} 21... Nb6 {[%clk 0:00:20.5]} 22. Qb3
{[%clk 0:01:17.7]} 22... Rcd8 {[%clk 0:00:20.9]} 23. Bd2 {[%clk 0:01:07.2]}
23... f6 {[%clk 0:00:20.5]} 24. Ba5 {[%clk 0:01:06.6]} 24... Rxd1+ {[%clk
0:00:19.1]} 25. Rxd1 {[%clk 0:01:06.3]} 25... Rd8 {[%clk 0:00:19.8]} 26. g3
{[%clk 0:01:01.8]} 26... Qe5 {[%clk 0:00:17.5]} 27. Rxd8 {[%clk 0:00:59]} 27...
Kxd8 {[%clk 0:00:18.4]} 28. Qd3+ {[%clk 0:00:52.8]} 28... Qd4 {[%clk 0:00:18.5]}
29. Qxd4+ {[%clk 0:00:50.9]} 29... Bxd4 {[%clk 0:00:19.4]} 30. b3 {[%clk
0:00:51.1]} 30... Ke7 {[%clk 0:00:19.2]} 31. Kf1 {[%clk 0:00:50.7]} 31... Nd5
{[%clk 0:00:18.9]} 32. Bd2 {[%clk 0:00:43.8]} 32... Nc3 {[%clk 0:00:18.8]} 33.
Bc4 {[%clk 0:00:36.5]} 33... Nxa2 {[%clk 0:00:17.5]} 34. Ke2 {[%clk 0:00:37.1]}
34... Nc3+ {[%clk 0:00:17.2]} 35. Kd3 {[%clk 0:00:37.8]} 35... Be5 {[%clk
0:00:17.3]} 36. Bxc3 {[%clk 0:00:38]} 36... Bxc3 {[%clk 0:00:17.3]} 37. Kxc3
{[%clk 0:00:38.9]} 1-0

[Event "Early-Titled-Tuesday-Blitz-June-18-2024"]
[Site "Chess.com"]
[Date "2024.06.18"]
[Round "10"]
[White "Kirill_Klukin"]
[Black "Individoom"]
[Result "0-1"]
[WhiteElo "2866"]
[BlackElo "2816"]
[TimeControl "180+1"]
[EndTime "9:56:47 PDT"]
[Termination "Individoom won by resignation"]

1. e4 {[%clk 0:03:00.9]} 1... c5 {[%clk 0:02:58.8]} 2. d4 {[%clk 0:02:59.1]}
2... cxd4 {[%clk 0:02:58.5]} 3. Qxd4 {[%clk 0:03:00]} 3... Nc6 {[%clk
0:02:57.5]} 4. Qd3 {[%clk 0:03:00.2]} 4... g6 {[%clk 0:02:55.7]} 5. Nc3 {[%clk
0:03:00.6]} 5... Bg7 {[%clk 0:02:55.5]} 6. Nf3 {[%clk 0:03:00.8]} 6... d6 {[%clk
0:02:54.7]} 7. Be2 {[%clk 0:03:01.3]} 7... Nf6 {[%clk 0:02:54.2]} 8. O-O {[%clk
0:03:01.8]} 8... O-O {[%clk 0:02:54.4]} 9. Nd5 {[%clk 0:03:02.5]} 9... Bg4
{[%clk 0:02:46.1]} 10. c3 {[%clk 0:03:02]} 10... Rc8 {[%clk 0:02:44.5]} 11. Bg5
{[%clk 0:03:01.3]} 11... Nd7 {[%clk 0:02:39.3]} 12. Rad1 {[%clk 0:02:51]} 12...
h6 {[%clk 0:02:29.4]} 13. Bf4 {[%clk 0:02:43.3]} 13... Nc5 {[%clk 0:01:30]} 14.
Qc2 {[%clk 0:02:39.1]} 14... Ne6 {[%clk 0:01:17.4]} 15. Be3 {[%clk 0:02:36.3]}
15... Re8 {[%clk 0:01:12.8]} 16. h3 {[%clk 0:02:28.8]} 16... Bxf3 {[%clk
0:01:12.3]} 17. Bxf3 {[%clk 0:02:29.7]} 17... Ncd4 {[%clk 0:01:09.9]} 18. Bxd4
{[%clk 0:02:30]} 18... Nxd4 {[%clk 0:01:09.6]} 19. Qd3 {[%clk 0:02:30.8]} 19...
Nxf3+ {[%clk 0:01:03.5]} 20. Qxf3 {[%clk 0:02:31]} 20... e6 {[%clk 0:01:03.9]}
21. Ne3 {[%clk 0:02:29.3]} 21... Qb6 {[%clk 0:01:02.4]} 22. Qe2 {[%clk
0:02:28.6]} 22... f5 {[%clk 0:00:58.7]} 23. exf5 {[%clk 0:02:25.4]} 23... gxf5
{[%clk 0:00:58.5]} 24. Rfe1 {[%clk 0:02:19.9]} 24... d5 {[%clk 0:00:58.1]} 25.
Qh5 {[%clk 0:02:14.2]} 25... Rf8 {[%clk 0:00:54]} 26. Re2 {[%clk 0:02:07.8]}
26... Rf6 {[%clk 0:00:50.4]} 27. Rde1 {[%clk 0:02:03.1]} 27... Kh7 {[%clk
0:00:49.1]} 28. Nc2 {[%clk 0:01:44.6]} 28... Rg6 {[%clk 0:00:45.8]} 29. Nd4
{[%clk 0:01:20.4]} 29... Bxd4 {[%clk 0:00:43.9]} 30. cxd4 {[%clk 0:01:21.3]}
30... Rcg8 {[%clk 0:00:44]} 31. Rxe6 {[%clk 0:00:53.6]} 31... Rxg2+ {[%clk
0:00:43.5]} 32. Kh1 {[%clk 0:00:54.3]} 32... Qxe6 {[%clk 0:00:43.1]} 33. Qd1
{[%clk 0:00:22.8]} 33... Qg6 {[%clk 0:00:30.1]} 34. Re7+ {[%clk 0:00:19.2]}
34... Kh8 {[%clk 0:00:29.3]} 0-1

[Event "Early-Titled-Tuesday-Blitz-June-18-2024"]
[Site "Chess.com"]
[Date "2024.06.18"]
[Round "10"]
[White "Lupul_Cenusiu"]
[Black "Tol_Tol"]
[Result "1-0"]
[WhiteElo "2695"]
[BlackElo "2350"]
[TimeControl "180+1"]
[EndTime "9:56:51 PDT"]
[Termination "Lupul_Cenusiu won by checkmate"]

1. e4 {[%clk 0:03:00.9]} 1... c5 {[%clk 0:02:58.6]} 2. Nc3 {[%clk 0:03:00.6]}
2... Nc6 {[%clk 0:02:58.7]} 3. Bb5 {[%clk 0:03:00.8]} 3... e6 {[%clk 0:02:58.7]}
4. Bxc6 {[%clk 0:02:57.2]} 4... bxc6 {[%clk 0:02:58.8]} 5. f4 {[%clk 0:02:56.2]}
5... c4 {[%clk 0:02:54.5]} 6. Nf3 {[%clk 0:02:55.6]} 6... d5 {[%clk 0:02:53]} 7.
d4 {[%clk 0:02:43.6]} 7... cxd3 {[%clk 0:02:50.7]} 8. cxd3 {[%clk 0:02:43.5]}
8... Bc5 {[%clk 0:02:37.4]} 9. d4 {[%clk 0:02:35.2]} 9... Bb4 {[%clk 0:02:34.7]}
10. O-O {[%clk 0:02:19.7]} 10... Ne7 {[%clk 0:01:56.5]} 11. e5 {[%clk
0:02:05.5]} 11... O-O {[%clk 0:01:33.2]} 12. Na4 {[%clk 0:01:59.6]} 12... Nf5
{[%clk 0:01:16.2]} 13. a3 {[%clk 0:01:30.7]} 13... Be7 {[%clk 0:01:12.1]} 14. g4
{[%clk 0:00:35.7]} 14... Nh4 {[%clk 0:00:55.8]} 15. Nxh4 {[%clk 0:00:35.2]}
15... Bxh4 {[%clk 0:00:56]} 16. g5 {[%clk 0:00:35.7]} 16... Ba6 {[%clk
0:00:52.7]} 17. Qg4 {[%clk 0:00:34.5]} 17... Bxf1 {[%clk 0:00:51.4]} 18. Kxf1
{[%clk 0:00:34]} 18... Qa5 {[%clk 0:00:39.2]} 19. Nc3 {[%clk 0:00:33.3]} 19...
Qa6+ {[%clk 0:00:37.8]} 20. Ne2 {[%clk 0:00:32.1]} 20... f6 {[%clk 0:00:15.2]}
21. exf6 {[%clk 0:00:13.2]} 21... gxf6 {[%clk 0:00:13]} 22. gxf6+ {[%clk
0:00:10.3]} 22... Kf7 {[%clk 0:00:09.9]} 23. Qg7+ {[%clk 0:00:10.3]} 23... Ke8
{[%clk 0:00:09.4]} 24. Qe7# {[%clk 0:00:10.5]} 1-0

[Event "Early-Titled-Tuesday-Blitz-June-18-2024"]
[Site "Chess.com"]
[Date "2024.06.18"]
[Round "10"]
[White "scarabee43"]
[Black "Mops_2004"]
[Result "1-0"]
[WhiteElo "2886"]
[BlackElo "2808"]
[TimeControl "180+1"]
[EndTime "9:56:52 PDT"]
[Termination "scarabee43 won by resignation"]

1. Nf3 {[%clk 0:03:00.9]} 1... g6 {[%clk 0:03:00.2]} 2. c4 {[%clk 0:03:00.3]}
2... Bg7 {[%clk 0:03:00.3]} 3. Nc3 {[%clk 0:03:00.9]} 3... d6 {[%clk 0:03:00.6]}
4. d4 {[%clk 0:03:00.5]} 4... e5 {[%clk 0:03:00.7]} 5. e4 {[%clk 0:02:57.9]}
5... Bg4 {[%clk 0:02:59.6]} 6. d5 {[%clk 0:02:57.1]} 6... a5 {[%clk 0:02:57.2]}
7. Be2 {[%clk 0:02:55.3]} 7... Bxf3 {[%clk 0:02:56.9]} 8. Bxf3 {[%clk
0:02:55.3]} 8... Nd7 {[%clk 0:02:56.1]} 9. O-O {[%clk 0:02:52.4]} 9... h5 {[%clk
0:02:53.4]} 10. g3 {[%clk 0:02:43.9]} 10... Bh6 {[%clk 0:02:47.1]} 11. h4 {[%clk
0:02:26.7]} 11... Kf8 {[%clk 0:02:42.8]} 12. a3 {[%clk 0:02:25.7]} 12... Nc5
{[%clk 0:02:29]} 13. b4 {[%clk 0:02:23.4]} 13... axb4 {[%clk 0:02:17]} 14. axb4
{[%clk 0:02:23.6]} 14... Rxa1 {[%clk 0:02:12.8]} 15. Bxh6+ {[%clk 0:02:23.6]}
15... Nxh6 {[%clk 0:02:13.7]} 16. Qxa1 {[%clk 0:02:23]} 16... Nb3 {[%clk
0:02:14.6]} 17. Qa2 {[%clk 0:02:12.5]} 17... Nd4 {[%clk 0:02:14.3]} 18. Bg2
{[%clk 0:02:12.7]} 18... g5 {[%clk 0:02:11.2]} 19. hxg5 {[%clk 0:02:11.2]} 19...
Qxg5 {[%clk 0:02:11.9]} 20. Ne2 {[%clk 0:01:45.4]} 20... Nxe2+ {[%clk
0:02:01.3]} 21. Qxe2 {[%clk 0:01:44.8]} 21... h4 {[%clk 0:02:02.2]} 22. Qf3
{[%clk 0:01:33.3]} 22... Rg8 {[%clk 0:01:42.5]} 23. c5 {[%clk 0:01:24.1]} 23...
Rg6 {[%clk 0:01:19.1]} 24. Ra1 {[%clk 0:01:04]} 24... Rf6 {[%clk 0:01:10.5]} 25.
gxh4 {[%clk 0:00:58.9]} 25... Qxh4 {[%clk 0:00:52.1]} 26. Qg3 {[%clk 0:00:51.9]}
26... Qh5 {[%clk 0:00:52]} 27. Ra8+ {[%clk 0:00:29.1]} 27... Ke7 {[%clk
0:00:51.7]} 28. Qg7 {[%clk 0:00:25.6]} 28... Rg6 {[%clk 0:00:12.6]} 29. Qf8+
{[%clk 0:00:24.9]} 29... Kf6 {[%clk 0:00:12.7]} 30. Qd8+ {[%clk 0:00:25.2]} 1-0

[Event "Early-Titled-Tuesday-Blitz-June-18-2024"]
[Site "Chess.com"]
[Date "2024.06.18"]
[Round "10"]
[White "JanMur7"]
[Black "Laico"]
[Result "0-1"]
[WhiteElo "2261"]
[BlackElo "2441"]
[TimeControl "180+1"]
[EndTime "9:56:55 PDT"]
[Termination "Laico won by resignation"]

1. c4 {[%clk 0:03:00.9]} 1... e5 {[%clk 0:02:59.9]} 2. Nc3 {[%clk 0:03:01.2]}
2... Nc6 {[%clk 0:03:00.3]} 3. Nf3 {[%clk 0:03:01.5]} 3... f5 {[%clk 0:03:01.2]}
4. d4 {[%clk 0:03:01.2]} 4... e4 {[%clk 0:03:01.6]} 5. d5 {[%clk 0:02:59.7]}
5... Bb4 {[%clk 0:03:02.5]} 6. dxc6 {[%clk 0:02:58.9]} 6... exf3 {[%clk
0:03:03]} 7. cxd7+ {[%clk 0:02:56.7]} 7... Bxd7 {[%clk 0:03:03.9]} 8. exf3
{[%clk 0:02:55]} 8... Bxc3+ {[%clk 0:03:04.8]} 9. bxc3 {[%clk 0:02:54.4]} 9...
Nf6 {[%clk 0:03:05.7]} 10. Ba3 {[%clk 0:02:50.8]} 10... Kf7 {[%clk 0:03:03.4]}
11. Be2 {[%clk 0:02:48.9]} 11... Re8 {[%clk 0:03:01.5]} 12. O-O {[%clk
0:02:48.1]} 12... Bc6 {[%clk 0:02:58.6]} 13. Bd3 {[%clk 0:02:42.7]} 13... Qd7
{[%clk 0:02:55.9]} 14. Bc5 {[%clk 0:02:33.1]} 14... Rad8 {[%clk 0:02:50.2]} 15.
Bd4 {[%clk 0:02:32.9]} 15... b6 {[%clk 0:02:47.8]} 16. Qb3 {[%clk 0:02:28.3]}
16... Ba4 {[%clk 0:02:40.4]} 17. Qa3 {[%clk 0:02:14.7]} 17... c5 {[%clk
0:02:40.4]} 18. Bxf6 {[%clk 0:02:14.7]} 18... Kxf6 {[%clk 0:02:39.1]} 19. Rae1
{[%clk 0:02:02.3]} 19... Rxe1 {[%clk 0:02:22.2]} 20. Rxe1 {[%clk 0:02:03.2]}
20... Qxd3 {[%clk 0:02:20.9]} 21. Qxa4 {[%clk 0:02:02.1]} 21... Qxc3 {[%clk
0:02:18.1]} 22. Qc6+ {[%clk 0:01:57.5]} 22... Kg5 {[%clk 0:02:18.2]} 23. Qe6
{[%clk 0:01:21.4]} 23... Qf6 {[%clk 0:01:29.9]} 24. Qe3+ {[%clk 0:00:34.9]}
24... Kg6 {[%clk 0:01:29.4]} 25. g3 {[%clk 0:00:32]} 25... f4 {[%clk 0:01:24.9]}
26. Qe4+ {[%clk 0:00:30.9]} 26... Qf5 {[%clk 0:01:22.1]} 27. Qc6+ {[%clk
0:00:29.2]} 27... Kf7 {[%clk 0:01:22]} 28. g4 {[%clk 0:00:20.5]} 28... Qd7
{[%clk 0:01:21.2]} 29. Qe4 {[%clk 0:00:16.8]} 29... Qd4 {[%clk 0:01:21.3]} 30.
Qe6+ {[%clk 0:00:14.7]} 30... Kf8 {[%clk 0:01:19.9]} 31. Qf5+ {[%clk 0:00:07.3]}
31... Kg8 {[%clk 0:01:14.1]} 32. Qh5 {[%clk 0:00:07.7]} 32... g6 {[%clk
0:00:59.6]} 33. Qg5 {[%clk 0:00:06]} 33... Rf8 {[%clk 0:00:55.5]} 34. Rc1 {[%clk
0:00:03.3]} 34... Re8 {[%clk 0:00:47.9]} 35. h3 {[%clk 0:00:01.2]} 35... Re2
{[%clk 0:00:47.5]} 36. Rf1 {[%clk 0:00:01.8]} 36... Rxa2 {[%clk 0:00:47.2]} 37.
Qd8+ {[%clk 0:00:02.4]} 37... Qxd8 {[%clk 0:00:46.6]} 0-1